fUST/lending_fUST_20250105
["ID","MTS","AMOUNT","RATE_DAILY","PERIOD"]
[347649016,1736013039712,-151.0,0.00019452,2]
[347649017,1736013039722,-151.0,0.00019452,2]
[347649018,1736013039731,-500.0,0.00019452,3]
[347649019,1736013039741,-500.0,0.00019452,3]
[347649020,1736013039750,-500.0,0.00019452,3]
[347649021,1736013039759,-541.71,0.00019452,3]
[347649022,1736013039769,-500.0,0.00019452,3]
[347649023,1736013039778,-500.0,0.00019452,3]
[347649024,1736013039787,-500.0,0.00019452,3]
[347649025,1736013039797,-151.526937,0.00019452,2]
[347649026,1736013039809,-500.0,0.00019452,3]
[347649028,1736013039818,-500.0,0.00019452,3]
[347649030,1736013039827,-500.0,0.00019452,3]
[347649032,1736013039839,-500.0,0.00019452,3]
[347649034,1736013039848,-510.50301064,0.00019452,3]
[347649036,1736013039858,-500.0,0.00019452,3]
[347649037,1736013039867,-500.0,0.00019452,3]
[347649038,1736013039877,-500.0,0.00019452,3]
[347649039,1736013039886,-151.0,0.00019452,2]
[347649040,1736013039896,-151.0,0.00019452,2]
[347649041,1736013039905,-151.0,0.00019452,2]
[347649042,1736013039914,-500.0,0.00019452,3]
[347649044,1736013039923,-243.444068,0.00019452,2]
[347649045,1736013039934,-520.1,0.00019452,3]
[347649046,1736013039944,-500.0,0.00019452,3]
[347649047,1736013039953,-500.0,0.00019452,3]
[347649048,1736013039963,-151.0,0.00019452,2]
[347649050,1736013039972,-151.0,0.00019452,2]
[347649051,1736013039982,-555.05523664,0.00019452,3]
[347649052,1736013039992,-500.0,0.00019452,3]
[347649053,1736013040002,-464.79531377,0.00019452,3]
[347649054,1736013040011,-500.0,0.00019452,3]
[347649055,1736013040021,-151.0,0.00019452,2]
[347649057,1736013040031,-151.0,0.00019452,2]
[347649059,1736013040040,-500.0,0.00019452,3]
[347649060,1736013040051,-500.0,0.00019452,3]
[347649061,1736013040061,-500.0,0.00019452,3]
[347649062,1736013040070,-500.0,0.00019452,3]
[347649063,1736013040080,-500.0,0.00019452,3]
[347649065,1736013040089,-500.0,0.00019452,3]
[347649066,1736013040098,-500.0,0.00019452,3]
[347649067,1736013040108,-500.0,0.00019452,3]
[347649068,1736013040119,-500.0,0.00019452,3]
[347649069,1736013040129,-500.0,0.00019452,3]
[347649070,1736013040138,-500.0,0.00019452,3]
[347649071,1736013040147,-500.0,0.00019452,3]
[347649073,1736013040157,-500.0,0.00019452,3]
[347649075,1736013040166,-554.55589622,0.00019452,3]
[347649077,1736013040175,-500.0,0.00019452,3]
[347649079,1736013040185,-500.0,0.00019452,3]
[347649080,1736013040194,-502.0649413,0.00019452,3]
[347649082,1736013040204,-500.0,0.00019452,3]
[347649084,1736013040213,-500.0,0.00019452,3]
[347649086,1736013040223,-500.0,0.00019452,3]
[347649087,1736013040232,-500.0,0.00019452,3]
[347649089,1736013040242,-389.304054,0.00019452,2]
[347649091,1736013040251,-389.304054,0.00019452,2]
[347649093,1736013040261,-389.304054,0.00019452,2]
[347649095,1736013040271,-389.304054,0.00019452,2]
[347649096,1736013040280,-526.93,0.00019452,3]
[347649097,1736013040290,-500.0,0.00019452,3]
[347649098,1736013040300,-500.0,0.00019452,3]
[347649099,1736013040311,-500.0,0.00019452,3]
[347649100,1736013040320,-258.90898006,0.00019452,3]
[347649101,1736013040330,-500.0,0.00019452,3]
[347649102,1736013040339,-500.0,0.00019452,3]
[347649103,1736013040348,-500.0,0.00019452,3]
[347649104,1736013040358,-589.33,0.00019452,3]
[347649105,1736013040367,-500.0,0.00019452,3]
[347649106,1736013040378,-608.12,0.00019452,3]
[347649107,1736013040388,-151.0,0.00019452,2]
[347649108,1736013040398,-787.64,0.00019452,3]
[347649109,1736013040408,-151.0,0.00019452,2]
[347649110,1736013040418,-500.0,0.00019452,3]
[347649111,1736013040428,-1009.23,0.00019452,3]
[347649112,1736013040437,-500.0,0.00019452,3]
[347649113,1736013040446,-500.0,0.00019452,3]
[347649114,1736013040456,-500.0,0.00019452,3]
[347649115,1736013040465,-500.0,0.00019452,3]
[347649116,1736013040474,-151.0,0.00019452,2]
[347649117,1736013040484,-151.0,0.00019452,2]
[347649119,1736013040500,-500.0,0.00019452,3]
[347649121,1736013040510,-500.0,0.00019452,3]
[347649123,1736013040520,-958.59,0.00019452,3]
[347649125,1736013040529,-500.0,0.00019452,3]
[347649126,1736013040540,-931.78,0.00019452,3]
[347649127,1736013040550,-500.0,0.00019452,3]
[347649128,1736013040564,-195.10596522,0.00019452,3]
[347649129,1736013040574,-151.0,0.00019452,2]
[347649130,1736013040584,-151.0,0.00019452,2]
[347649131,1736013040594,-151.0,0.00019452,2]
[347649132,1736013040604,-151.0,0.00019452,2]
[347649133,1736013040614,-500.0,0.00019452,3]
[347649134,1736013040624,-500.0,0.00019452,3]
[347649135,1736013040634,-500.0,0.00019452,3]
[347649136,1736013040644,-500.0,0.00019452,3]
[347649137,1736013040654,-500.0,0.00019452,3]
[347649138,1736013040664,-500.0,0.00019452,3]
[347649139,1736013040674,-500.0,0.00019452,3]
[347649140,1736013040683,-500.0,0.00019452,3]
[347649141,1736013040693,-500.0,0.00019452,3]
[347649142,1736013040704,-500.0,0.00019452,3]
[347649143,1736013040714,-500.0,0.00019452,3]
[347649144,1736013040723,-151.0,0.00019452,2]
[347649145,1736013040733,-151.0,0.00019452,2]
[347649146,1736013040743,-500.0,0.00019452,3]
[347649147,1736013040753,-980.13,0.00019452,3]
[347649148,1736013040763,-500.0,0.00019452,3]
[347649149,1736013040772,-151.0,0.00019452,2]
[347649150,1736013040781,-151.0,0.00019452,2]
[347649151,1736013040791,-529.26,0.00019452,3]
[347649152,1736013040800,-168.65206847,0.00019452,3]
[347649153,1736013040812,-500.0,0.00019452,3]
[347649154,1736013040822,-500.0,0.00019452,3]
[347649155,1736013040831,-500.0,0.00019452,3]
[347649156,1736013040841,-1162.46,0.00019452,3]
[347649157,1736013040850,-500.0,0.00019452,3]
[347649158,1736013040860,-500.0,0.00019452,3]
[347649159,1736013040869,-151.0,0.00019452,2]
[347649160,1736013040879,-151.0,0.00019452,2]
[347649161,1736013040889,-500.0,0.00019452,3]
[347649162,1736013040898,-500.0,0.00019452,3]
[347649163,1736013040907,-500.0,0.00019452,3]
[347649164,1736013040917,-500.0,0.00019452,3]
[347649165,1736013040926,-810.6,0.00019452,3]
[347649166,1736013040936,-151.0,0.00019452,2]
[347649167,1736013040945,-151.0,0.00019452,2]
[347649168,1736013040954,-264.72075846,0.00019452,3]
[347649169,1736013040964,-151.0,0.00019452,2]
[347649170,1736013040973,-151.0,0.00019452,2]
[347649171,1736013040982,-500.0,0.00019452,3]
[347649172,1736013040992,-500.0,0.00019452,3]
[347649173,1736013041001,-899.02,0.00019452,3]
[347649174,1736013041010,-1514.98,0.00019452,3]
[347649175,1736013041019,-500.0,0.00019452,3]
[347649176,1736013041029,-500.0,0.00019452,3]
[347649177,1736013041038,-500.0,0.00019452,3]
[347649178,1736013041047,-725.81,0.00019452,3]
[347649179,1736013041058,-1591.07,0.00019452,3]
[347649180,1736013041067,-500.0,0.00019452,3]
[347649181,1736013041076,-596.96,0.00019452,3]
[347649182,1736013041085,-151.0,0.00019452,2]
[347649183,1736013041094,-151.0,0.00019452,2]
[347649184,1736013041104,-500.0,0.00019452,3]
[347649185,1736013041113,-1365.27,0.00019452,3]
[347649186,1736013041122,-500.0,0.00019452,3]
[347649187,1736013041131,-151.0,0.00019452,2]
[347649188,1736013041141,-151.0,0.00019452,2]
[347649189,1736013041150,-500.0,0.00019452,3]
[347649190,1736013041160,-826.82,0.00019452,3]
[347649191,1736013041169,-566.08175612,0.00019452,3]
[347649192,1736013041179,-500.0,0.00019452,3]
[347649193,1736013041188,-500.0,0.00019452,3]
[347649194,1736013041198,-999.9,0.00019452,3]
[347649195,1736013041207,-500.0,0.00019452,3]
[347649196,1736013041216,-500.0,0.00019452,3]
[347649197,1736013041225,-500.0,0.00019452,3]
[347649198,1736013041235,-940.25,0.00019452,3]
[347649199,1736013041244,-500.0,0.00019452,3]
[347649200,1736013041254,-500.0,0.00019452,3]
[347649201,1736013041263,-829.72,0.00019452,3]
[347649202,1736013041272,-548.91,0.00019452,3]
[347649203,1736013041282,-500.0,0.00019452,3]
[347649204,1736013041453,-500.0,0.00019452,3]
[347649205,1736013041463,-500.0,0.00019452,3]
[347649206,1736013041472,-832.5,0.00019452,3]
[347649207,1736013041482,-500.0,0.00019452,3]
[347649208,1736013041495,-500.0,0.00019452,3]
[347649209,1736013041505,-500.0,0.00019452,3]
[347649210,1736013041515,-500.0,0.00019452,3]
[347649211,1736013041524,-500.0,0.00019452,3]
[347649212,1736013041534,-1006.75,0.00019452,3]
[347649213,1736013041543,-815.49,0.00019452,3]
[347649214,1736013041554,-500.0,0.00019452,3]
[347649215,1736013041564,-187.861255,0.00019452,2]
[347649216,1736013041574,-505.17992541,0.00019452,3]
[347649217,1736013041584,-187.861255,0.00019452,2]
[347649218,1736013041596,-187.861255,0.00019452,2]
[347649219,1736013041606,-187.861255,0.00019452,2]
[347649220,1736013041616,-500.0,0.00019452,3]
[347649221,1736013041625,-500.0,0.00019452,3]
[347649222,1736013041635,-500.0,0.00019452,3]
[347649223,1736013041644,-500.0,0.00019452,3]
[347649224,1736013041654,-500.0,0.00019452,3]
[347649225,1736013041665,-500.0,0.00019452,3]
[347649226,1736013041675,-500.0,0.00019452,3]
[347649227,1736013041684,-500.0,0.00019452,3]
[347649228,1736013041694,-500.0,0.00019452,3]
[347649229,1736013041704,-500.0,0.00019452,3]
[347649230,1736013041713,-1818.84,0.00019452,3]
[347649231,1736013041723,-151.0,0.00019452,2]
[347649232,1736013041733,-500.0,0.00019452,3]
[347649233,1736013041743,-151.0,0.00019452,2]
[347649234,1736013041752,-500.0,0.00019452,3]
[347649235,1736013041761,-500.0,0.00019452,3]
[347649236,1736013041771,-596.48,0.00019452,3]
[347649237,1736013041781,-873.84,0.00019452,3]
[347649238,1736013041790,-1465.68,0.00019452,3]
[347649239,1736013041800,-500.0,0.00019452,3]
[347649240,1736013041814,-507.41560864,0.00019452,3]
[347649241,1736013041823,-500.0,0.00019452,3]
[347649242,1736013041832,-500.0,0.00019452,3]
[347649243,1736013041842,-500.0,0.00019452,3]
[347649244,1736013041852,-500.0,0.00019452,3]
[347649245,1736013041861,-500.96,0.00019452,3]
[347649246,1736013041870,-500.0,0.00019452,3]
[347649247,1736013041880,-500.0,0.00019452,3]
[347649248,1736013041888,-11070.96,0.00019452,3]
[347649249,1736013041898,-500.0,0.00019452,3]
[347649250,1736013041908,-1031.91,0.00019452,3]
[347649251,1736013041917,-500.0,0.00019452,3]
[347649252,1736013041927,-766.97,0.00019452,3]
[347649253,1736013041936,-151.0,0.00019452,2]
[347649254,1736013041945,-151.0,0.00019452,2]
[347649255,1736013041955,-171.077135,0.00019452,2]
[347649256,1736013041965,-500.0,0.00019452,3]
[347649257,1736013041974,-171.077135,0.00019452,2]
[347649258,1736013041983,-151.0,0.00019452,2]
[347649259,1736013041992,-171.077135,0.00019452,2]
[347649260,1736013042002,-151.0,0.00019452,2]
[347649261,1736013042011,-171.077135,0.00019452,2]
[347649262,1736013042023,-151.0,0.00019452,2]
[347649263,1736013042032,-500.0,0.00019452,3]
[347649264,1736013042041,-500.0,0.00019452,3]
[347649265,1736013042051,-621.29019866,0.00019452,3]
[347649266,1736013042062,-500.0,0.00019452,3]
[347649267,1736013042071,-500.0,0.00019452,3]
[347649268,1736013042080,-500.0,0.00019452,3]
[347649269,1736013042090,-500.0,0.00019452,3]
[347649270,1736013042099,-1888.58,0.00019452,3]
[347649271,1736013042109,-500.0,0.00019452,3]
[347649272,1736013042119,-500.0,0.00019452,3]
[347649273,1736013042128,-500.0,0.00019452,3]
[347649274,1736013042137,-151.0,0.00019452,2]
[347649275,1736013042146,-151.0,0.00019452,2]
[347649276,1736013042156,-514.46,0.00019452,3]
[347649277,1736013042165,-500.0,0.00019452,3]
[347649278,1736013042174,-500.0,0.00019452,3]
[347649279,1736013042186,-858.07,0.00019452,3]
[347649280,1736013042196,-500.0,0.00019452,3]
[347649281,1736013042205,-500.0,0.00019452,3]
[347649282,1736013042215,-2080.78,0.00019452,2]
[347649283,1736013042224,-500.0,0.00019452,3]
[347649284,1736013042233,-1955.05,0.00019452,3]
[347649285,1736013042243,-5799.82,0.00019452,3]
[347649286,1736013042252,-151.0,0.00019452,2]
[347649287,1736013042261,-151.0,0.00019452,2]
[347649288,1736013042271,-500.0,0.00019452,3]
[347649289,1736013042281,-502.4,0.00019452,3]
[347649290,1736013042290,-500.0,0.00019452,3]
[347649291,1736013042299,-500.0,0.00019452,3]
[347649292,1736013042309,-500.0,0.00019452,3]
[347649293,1736013042319,-500.0,0.00019452,3]
[347649294,1736013042328,-500.0,0.00019452,3]
[347649295,1736013042338,-500.0,0.00019452,3]
[347649296,1736013042348,-500.0,0.00019452,3]
[347649297,1736013042357,-448.61066935,0.00019452,3]
[347649299,1736013042835,-1192.51408473,0.00018899,2]
[347649300,1736013042844,-910.34456474,0.00018985,2]
[347649301,1736013042854,-500.0,0.00019178,2]
[347649302,1736013042864,-500.0,0.00019178,2]
[347649303,1736013042873,-51.38933065,0.00019452,3]
[347649304,1736013042883,-500.0,0.00019452,3]
[347649305,1736013042892,-500.0,0.00019452,3]
[347649307,1736013042902,-500.0,0.00019452,3]
[347649309,1736013042911,-799.45,0.00019452,3]
[347649310,1736013042920,-1200.79,0.00019452,3]
[347649311,1736013042930,-1698.05,0.00019452,3]
[347649312,1736013042939,-912.26,0.00019452,3]
[347649313,1736013042948,-449.77558309,0.00019452,3]
[347649314,1736013042960,-88.96441691,0.00019452,3]
[347649315,1736013042970,-500.0,0.00019452,3]
[347649316,1736013042980,-536.0,0.00019452,3]
[347649317,1736013042989,-915.98,0.00019452,3]
[347649318,1736013042999,-151.0,0.00019452,2]
[347649319,1736013043008,-151.0,0.00019452,2]
[347649320,1736013043017,-3298.21,0.00019452,3]
[347649321,1736013043027,-500.0,0.00019452,3]
[347649323,1736013043036,-436.62868547,0.00019452,3]
[347649325,1736013043046,-500.0,0.00019452,3]
[347649326,1736013043055,-1166.81,0.00019452,3]
[347649327,1736013043064,-2005.99,0.00019452,3]
[347649328,1736013043074,-500.0,0.00019452,3]
[347649329,1736013043083,-500.0,0.00019452,3]
[347649331,1736013043092,-1179.75,0.00019452,3]
[347649333,1736013043102,-151.0,0.00019452,2]
[347649334,1736013043111,-500.0,0.00019452,3]
[347649335,1736013043121,-500.0,0.00019452,3]
[347649336,1736013043130,-1294.16,0.00019452,3]
[347649337,1736013043139,-500.0,0.00019452,3]
[347649339,1736013043149,-523.60126946,0.00019452,3]
[347649341,1736013043159,-500.0,0.00019452,3]
[347649342,1736013043168,-740.35,0.00019452,3]
[347649343,1736013043177,-500.0,0.00019452,3]
[347649344,1736013043187,-791.34,0.00019452,3]
[347649345,1736013043196,-548.45545257,0.00019452,3]
[347649346,1736013043205,-384.87211796,0.00019452,3]
[347649347,1736013043215,-500.0,0.00019452,3]
[347649348,1736013043224,-500.0,0.00019452,3]
[347649349,1736013043234,-500.0,0.00019452,3]
[347649350,1736013043243,-500.0,0.00019452,3]
[347649351,1736013043253,-500.0,0.00019452,3]
[347649352,1736013043263,-500.0,0.00019452,3]
[347649354,1736013043273,-500.0,0.00019452,3]
[347649355,1736013043282,-1793.69,0.00019452,3]
[347649356,1736013043292,-9605.45,0.00019452,3]
[347649357,1736013043301,-500.0,0.00019452,3]
[347649358,1736013043311,-546.97670704,0.00019452,3]
[347649359,1736013043321,-500.0,0.00019452,3]
[347649360,1736013043330,-500.0,0.00019452,3]
[347649361,1736013043339,-998.62,0.00019452,3]
[347649362,1736013043349,-5688.07,0.00019452,3]
[347649363,1736013043358,-500.0,0.00019452,3]
[347649364,1736013043368,-500.0,0.00019452,3]
[347649365,1736013043378,-954.41,0.00019452,3]
[347649366,1736013043388,-3422.38,0.00019452,3]
[347649367,1736013043398,-3886.28,0.00019452,3]
[347649368,1736013043408,-500.0,0.00019452,3]
[347649369,1736013043418,-500.0,0.00019452,3]
[347649370,1736013043427,-169.28370037,0.00019452,3]
[347649371,1736013043437,-601.6277443,0.00019452,3]
[347649372,1736013043446,-500.0,0.00019452,3]
[347649373,1736013043456,-500.0,0.00019452,3]
[347649374,1736013043465,-500.0,0.00019452,3]
[347649375,1736013043474,-500.0,0.00019452,3]
[347649376,1736013043483,-239.60298842,0.00019452,3]
[347649377,1736013043497,-500.0,0.00019452,3]
[347649379,1736013043506,-500.0,0.00019452,3]
[347649381,1736013043515,-2498.5444889,0.00019452,3]
[347649383,1736013043532,-285.43980486,0.00019452,3]
[347649385,1736013043543,-17729.28424251,0.00019452,3]
[347649386,1736013043555,-18428.84644034,0.00019452,3]
[347649390,1736013043942,-500.0,0.00019178,2]
[347649391,1736013043952,-895.99,0.00019178,2]
[347649392,1736013043961,-500.0,0.00019178,2]
[347649393,1736013043971,-105.81392648,0.00019452,3]
[347649394,1736013044174,-1192.51408471,0.00018983,2]
[347649395,1736013044184,-162.55591529,0.00019178,2]
[347649396,1736013044199,-337.44408471,0.00019178,2]
[347649397,1736013044209,-11255.71109691,0.00019452,3]
[347649398,1736013044217,-500.0,0.00019452,3]
[347649399,1736013044226,-500.0,0.00019452,3]
[347649400,1736013044236,-1855.16,0.00019452,3]
[347649401,1736013044245,-151.0,0.00019452,2]
[347649402,1736013044254,-500.0,0.00019452,3]
[347649403,1736013044264,-500.0,0.00019452,3]
[347649404,1736013044273,-500.0,0.00019452,3]
[347649405,1736013044282,-151.0,0.00019452,2]
[347649406,1736013044292,-500.0,0.00019452,3]
[347649407,1736013044301,-151.0,0.00019452,2]
[347649408,1736013044311,-151.0,0.00019452,2]
[347649409,1736013044320,-500.0,0.00019452,3]
[347649410,1736013044329,-1052.7,0.00019452,3]
[347649411,1736013044339,-1520.61,0.00019452,3]
[347649412,1736013044348,-337.8325663,0.00019452,3]
[347649413,1736013044357,-1689.82,0.00019452,3]
[347649414,1736013044366,-382.91909146,0.00019452,3]
[347649415,1736013044376,-1169.0,0.00019452,3]
[347649416,1736013044385,-500.0,0.00019452,3]
[347649417,1736013044394,-500.0,0.00019452,3]
[347649418,1736013044403,-151.0,0.00019452,2]
[347649419,1736013044412,-151.0,0.00019452,2]
[347649420,1736013044422,-500.0,0.00019452,3]
[347649421,1736013044431,-2225.76,0.00019452,3]
[347649422,1736013044441,-565.92,0.00019452,3]
[347649423,1736013044450,-507.8077194,0.00019452,3]
[347649424,1736013044459,-500.0,0.00019452,3]
[347649425,1736013044469,-500.0,0.00019452,3]
[347649426,1736013044478,-500.0,0.00019452,3]
[347649427,1736013044487,-2553.38,0.00019452,3]
[347649428,1736013044498,-500.0,0.00019452,3]
[347649429,1736013044507,-626.51,0.00019452,3]
[347649430,1736013044516,-500.0,0.00019452,3]
[347649431,1736013044526,-752.49,0.00019452,3]
[347649432,1736013044536,-2104.23,0.00019452,3]
[347649433,1736013044545,-500.0,0.00019452,3]
[347649434,1736013044554,-2264.92,0.00019452,3]
[347649435,1736013044566,-500.0,0.00019452,3]
[347649436,1736013044575,-327.32708643,0.00019452,3]
[347649437,1736013044585,-1477.25,0.00019452,3]
[347649438,1736013044594,-500.0,0.00019452,3]
[347649439,1736013044604,-500.0,0.00019452,3]
[347649440,1736013044613,-1408.89,0.00019452,3]
[347649441,1736013044623,-500.0,0.00019452,3]
[347649442,1736013044632,-510.30694251,0.00019452,3]
[347649443,1736013044641,-500.0,0.00019452,3]
[347649444,1736013044651,-439.03582281,0.00019452,3]
[347649445,1736013044660,-500.0,0.00019452,3]
[347649446,1736013044670,-5603.15,0.00019452,3]
[347649447,1736013044679,-500.0,0.00019452,3]
[347649448,1736013044688,-539.41859522,0.00019452,3]
[347649449,1736013044698,-518.34,0.00019452,3]
[347649450,1736013044707,-500.0,0.00019452,3]
[347649451,1736013044716,-118.96047419,0.00019452,3]
[347649452,1736013044728,-381.03952581,0.00019452,3]
[347649453,1736013044737,-253.94316365,0.00019452,2]
[347649482,1736013876901,204.425722,0.00013973,2]
[347649490,1736014151339,500.0,0.00025,120]
[347649564,1736014232899,-2957.6051192,0.00014993,2]
[347649566,1736014232908,-2957.6051192,0.00014995,2]
[347649568,1736014232922,-2957.6051192,0.00014999,2]
[347649570,1736014232931,-300.0,0.00015836,2]
[347649572,1736014232941,-24900.0,0.00015837,2]
[347649574,1736014232950,-300.0,0.00015892,2]
[347649576,1736014232961,-300.0,0.00016053,2]
[347649578,1736014232970,-13151.6786259,0.00016378,2]
[347649580,1736014232979,-397.50469491,0.00016445,2]
[347649582,1736014232988,-17506.61578332,0.00016545,2]
[347649584,1736014232998,-397.5046949,0.00016664,2]
[347649586,1736014233007,-397.5046949,0.00016882,2]
[347649588,1736014233016,-420.1547384,0.00016982,2]
[347649590,1736014233026,-420.0,0.00017317,2]
[347649592,1736014233035,-152.0,0.00017428,2]
[347649594,1736014233044,-281.359202,0.00017443,2]
[347649596,1736014233054,-11625.60913582,0.00017612,2]
[347649598,1736014233063,-11625.60913582,0.00017814,2]
[347649600,1736014233072,-192.0,0.0001782,2]
[347649602,1736014233082,-1735.97525729,0.00017938,2]
[347649604,1736014233091,-904.17,0.00018,2]
[347649605,1736014233100,-35072.17739143,0.00018031,2]
[347649607,1736014233110,-838.09746168,0.00018038,2]
[347649609,1736014233120,-11625.60913582,0.00018155,2]
[347649611,1736014233130,-216.0,0.00018221,2]
[347649613,1736014233139,-1735.97525725,0.00018223,2]
[347649615,1736014233150,-11625.60913582,0.00018452,2]
[347649616,1736014233159,-276.624,0.0001848,2]
[347649618,1736014233169,-1735.97525725,0.00018508,2]
[347649619,1736014233178,-185.765,0.00018779,2]
[347649620,1736014233188,-1735.97525725,0.00018793,2]
[347649621,1736014233197,-11625.60913582,0.00018796,2]
[347649622,1736014233208,-244.25476345,0.00018813,2]
[347649623,1736014233217,-500.0,0.00018813,2]
[347649624,1736014233227,-500.0,0.00018814,2]
[347649625,1736014233236,-500.0,0.00018814,2]
[347649626,1736014233246,-319.77910266,0.00018814,2]
[347649627,1736014233255,-500.0,0.00018814,2]
[347649628,1736014233266,-500.0,0.00018814,2]
[347649629,1736014233275,-466.97363086,0.00018814,2]
[347649630,1736014233284,-500.0,0.00018814,2]
[347649631,1736014233294,-500.0,0.00018814,2]
[347649632,1736014233304,-196.96077666,0.00018814,2]
[347649633,1736014233315,-500.0,0.00018814,2]
[347649634,1736014233325,-500.0,0.00018814,2]
[347649635,1736014233334,-500.0,0.00018814,2]
[347649636,1736014233344,-391.48527265,0.00018814,2]
[347649637,1736014233354,-500.0,0.00018814,2]
[347649638,1736014233364,-500.0,0.00018814,2]
[347649639,1736014233375,-500.0,0.00018814,2]
[347649640,1736014233384,-500.0,0.00018814,2]
[347649641,1736014233394,-500.0,0.00018814,2]
[347649642,1736014233403,-500.0,0.00018814,2]
[347649643,1736014233413,-500.0,0.00018814,2]
[347649644,1736014233423,-500.0,0.00018814,2]
[347649645,1736014233434,-300.0,0.00018814,2]
[347649646,1736014233443,-500.0,0.00018814,2]
[347649647,1736014233452,-500.0,0.00018814,2]
[347649648,1736014233462,-500.0,0.00018814,2]
[347649649,1736014233471,-500.0,0.00018814,2]
[347649650,1736014233482,-500.0,0.00018814,2]
[347649651,1736014233492,-165.76193788,0.00018814,2]
[347649652,1736014233501,-500.0,0.00018814,2]
[347649653,1736014233511,-500.0,0.00018814,2]
[347649654,1736014233520,-500.0,0.00018814,2]
[347649655,1736014233530,-460.0,0.00018814,2]
[347649656,1736014233539,-500.0,0.00018814,2]
[347649657,1736014233549,-500.0,0.00018814,2]
[347649658,1736014233559,-500.0,0.00018814,2]
[347649659,1736014233568,-500.0,0.00018814,2]
[347649660,1736014233578,-500.0,0.00018814,2]
[347649661,1736014233587,-500.0,0.00018814,2]
[347649662,1736014233597,-500.0,0.00018814,2]
[347649663,1736014233607,-500.0,0.00018814,2]
[347649664,1736014233617,-500.0,0.00018814,2]
[347649665,1736014233627,-500.0,0.00018814,2]
[347649666,1736014233637,-500.0,0.00018814,2]
[347649667,1736014233659,-534.98999894,0.00018814,2]
[347649668,1736014233668,-664.66890731,0.00018814,2]
[347649669,1736014233678,-664.66890731,0.00018814,2]
[347649670,1736014233688,-664.66890731,0.00018814,2]
[347649671,1736014233697,-664.66890731,0.00018814,2]
[347649672,1736014233707,-664.66890731,0.00018814,2]
[347649673,1736014233719,-664.66890731,0.00018814,2]
[347649674,1736014233729,-664.66890731,0.00018814,2]
[347649675,1736014233738,-664.66890731,0.00018814,2]
[347649676,1736014233748,-664.66890731,0.00018814,2]
[347649677,1736014233758,-664.66890731,0.00018814,2]
[347649678,1736014233767,-664.66890731,0.00018814,2]
[347649679,1736014233777,-664.66890731,0.00018814,2]
[347649680,1736014233786,-664.66890731,0.00018814,2]
[347649681,1736014233796,-664.66890731,0.00018814,2]
[347649682,1736014233805,-664.66890731,0.00018814,2]
[347649683,1736014233815,-664.66890731,0.00018814,2]
[347649684,1736014233824,-664.66890731,0.00018814,2]
[347649685,1736014233834,-306.27353121,0.00018814,2]
[347649686,1736014233844,-664.66890731,0.00018814,2]
[347649687,1736014233854,-664.66890731,0.00018814,2]
[347649688,1736014233865,-664.66890731,0.00018814,2]
[347649689,1736014233875,-664.66890731,0.00018814,2]
[347649690,1736014233885,-664.66890731,0.00018814,2]
[347649691,1736014233894,-664.66890731,0.00018814,2]